bitfinex-derivatives/quotes_BTCF0:USTF0_20240923
["timestamp","ask_amount","ask_price","bid_price","bid_amount"]
[1727116932359,0.0119904,63532.0,63531.0,0.70282392]
[1727116932865,0.0189904,63532.0,63531.0,0.70382392]
[1727116933064,0.0189904,63532.0,63531.0,0.67921]
[1727116933271,0.0189904,63532.0,63531.0,0.68021]
[1727116933272,0.0319904,63532.0,63531.0,0.68021]
[1727116933761,0.05750603,63532.0,63531.0,0.68021]
[1727116935856,0.3608,63543.0,63542.0,0.078692]
[1727116936058,0.3608,63543.0,63542.0,0.238692]
[1727116936862,0.3608,63543.0,63542.0,0.239692]
[1727116936863,0.3668,63543.0,63542.0,0.239692]
[1727116937465,0.3608,63543.0,63542.0,0.238692]
[1727116937764,0.3608,63543.0,63542.0,0.239692]
[1727116939566,0.3608,63543.0,63542.0,0.238692]
[1727116939772,0.3608,63543.0,63542.0,0.317384]
[1727116940355,0.01300149,63544.0,63543.0,0.07869]
[1727116942262,0.01300149,63544.0,63543.0,0.08469]
[1727116942855,0.01300149,63544.0,63543.0,0.07869]
[1727116943055,0.01300149,63544.0,63543.0,0.08769]
[1727116943470,0.01300149,63544.0,63543.0,0.08369]
[1727116943663,0.01300149,63544.0,63543.0,0.08869]
[1727116944670,0.01300149,63544.0,63543.0,0.08769]
[1727116945359,0.01300149,63544.0,63543.0,0.08669]
[1727116947671,0.01300149,63544.0,63543.0,0.08269]
[1727116947865,0.01300149,63544.0,63543.0,0.08669]
[1727116951564,0.01300149,63544.0,63543.0,0.08569]
[1727116952367,0.01300149,63544.0,63543.0,0.19569]
[1727116952573,0.01300149,63544.0,63543.0,0.19469]
[1727116953464,0.01300149,63544.0,63543.0,0.19169]
[1727116953663,0.01300149,63544.0,63543.0,0.19469]
[1727116954065,0.01300149,63544.0,63543.0,0.19169]
[1727116954380,0.01300149,63544.0,63543.0,0.27338]
[1727116954562,0.01300149,63544.0,63543.0,0.27038]
[1727116954759,0.01300149,63544.0,63543.0,0.27338]
[1727116955665,0.03851274,63544.0,63543.0,0.27338]
[1727116957282,0.13246624,63544.0,63543.0,0.27338]
[1727116957477,0.03851274,63544.0,63543.0,0.27338]
[1727116959271,0.03851274,63544.0,63543.0,0.40137]
[1727116959478,0.03851274,63544.0,63543.0,0.40237]
[1727116959776,0.01300149,63544.0,63543.0,0.40237]
[1727116959976,0.01300149,63544.0,63543.0,0.39937]
[1727116960170,0.01300149,63544.0,63543.0,0.48206]
[1727116960377,0.1000179,63546.0,63545.0,0.236064]
[1727116960577,0.00590796,63546.0,63545.0,0.236064]
[1727116960786,0.09410994,63547.0,63546.0,0.236061]
[1727116960977,0.09410994,63547.0,63546.0,0.346061]
[1727116962379,0.11023537,63556.0,63546.0,0.788687]
[1727116962571,0.11023537,63556.0,63555.0,0.4708]
[1727116963286,0.01207123,63557.0,63556.0,0.078674]
[1727116964683,0.01207123,63557.0,63556.0,0.14210374]
[1727116964885,0.01207123,63557.0,63556.0,0.079674]
[1727116965573,0.01207123,63557.0,63556.0,0.158348]
[1727116965772,0.01207123,63557.0,63556.0,0.159348]
[1727116968187,0.01207123,63557.0,63556.0,0.080674]
[1727116971491,0.13805451,63557.0,63556.0,0.080674]
[1727116971789,0.2241464,63557.0,63556.0,0.080674]
[1727116972181,0.2241464,63557.0,63556.0,0.159348]
[1727116972377,0.2241464,63557.0,63556.0,0.080674]
[1727116972578,0.09816312,63557.0,63556.0,0.080674]
[1727116972890,0.09816312,63557.0,63556.0,0.159348]
[1727116973186,0.09816312,63557.0,63556.0,0.080674]
[1727116973592,0.05190928,63557.0,63556.0,0.080674]
[1727116974886,0.05190928,63557.0,63556.0,0.159348]
[1727116975286,0.01207123,63557.0,63556.0,0.159348]
[1727116975798,0.01207123,63557.0,63556.0,0.080674]
[1727116975989,0.07741261,63557.0,63556.0,0.080674]
[1727116976186,0.07741261,63557.0,63556.0,0.18394398]
[1727116977487,0.07741261,63557.0,63556.0,0.10526998]
[1727116977695,0.07741261,63557.0,63556.0,0.18394398]
[1727116978391,0.01207123,63557.0,63556.0,0.18394398]
[1727116979295,0.01207123,63557.0,63556.0,0.159348]
[1727116979500,0.01207123,63557.0,63556.0,0.10526998]
[1727116979993,0.01207123,63557.0,63556.0,0.18394398]
[1727116980202,0.0954,63561.0,63560.0,0.157338]
[1727116980393,0.0954,63561.0,63560.0,0.29193398]
[1727116980704,0.0954,63561.0,63560.0,0.267338]
[1727116981391,0.0954,63561.0,63560.0,0.346007]
[1727116981593,0.0954,63561.0,63560.0,0.347007]
[1727116981791,0.0954,63561.0,63560.0,0.348007]
[1727116986104,0.0954,63561.0,63560.0,0.3769409]
[1727116986288,0.0954,63561.0,63560.0,0.55592652]
[1727116986492,0.12090265,63561.0,63560.0,0.3769409]
[1727116986791,0.2607649,63561.0,63560.0,0.3769409]
[1727116987191,0.40246106,63561.0,63560.0,0.3769409]
[1727116988201,0.2607649,63561.0,63560.0,0.3769409]
[1727116988500,0.30245499,63561.0,63560.0,0.3769409]
[1727116988709,0.40216325,63561.0,63560.0,0.3769409]
[1727116988904,0.12568731,63561.0,63560.0,0.40153598]
[1727116989102,0.0494,63570.0,63568.0,0.078659]
[1727116989298,0.00678395,63569.0,63568.0,0.706777]
[1727116990300,0.00678395,63569.0,63568.0,1.067577]
[1727116990697,0.00678395,63569.0,63568.0,1.09216849]
[1727116991200,0.00678395,63569.0,63568.0,0.957577]
[1727116991494,0.00678395,63569.0,63568.0,0.990918]
[1727116992398,0.00678395,63569.0,63568.0,1.039918]
[1727116992597,0.00678395,63569.0,63568.0,1.038918]
[1727116993907,0.00678395,63569.0,63568.0,0.960259]
[1727116994406,0.09299169,63571.0,63570.0,0.078657]
[1727116995505,0.25299169,63571.0,63570.0,0.001]
[1727116995811,0.25299169,63571.0,63567.0,0.07866]
[1727116995812,0.078659,63568.0,63567.0,0.07866]
[1727116996121,0.078666,63565.0,63564.0,0.078664]
[1727116997603,0.079666,63565.0,63564.0,0.078664]
[1727116999611,0.078666,63563.0,63562.0,0.39093684]
[1727116999796,0.078666,63563.0,63562.0,0.46844384]
[1727117000999,0.078668,63561.0,63559.0,0.07796295]
[1727117001204,0.0479,63560.0,63557.0,0.078673]
[1727117001406,0.0479,63560.0,63557.0,0.15663595]
[1727117001407,0.078672,63558.0,63557.0,0.15663595]
[1727117001608,0.078672,63558.0,63557.0,0.078673]
[1727117003708,0.079672,63558.0,63557.0,0.078673]
[1727117004814,0.078672,63558.0,63557.0,0.078673]
[1727117005001,0.079672,63558.0,63557.0,0.078673]
[1727117005701,0.079672,63558.0,63557.0,0.238673]
[1727117006201,0.079672,63558.0,63557.0,0.26327157]
[1727117006420,0.079672,63558.0,63557.0,0.238673]
[1727117006613,0.079672,63558.0,63557.0,0.26327157]
[1727117008812,0.079672,63558.0,63557.0,0.317346]
[1727117008813,0.001,63558.0,63557.0,0.317346]
[1727117008998,0.001,63558.0,63557.0,0.49867555]
[1727117009204,0.07866,63568.0,63557.0,0.2633666]
[1727117009411,0.07866,63568.0,63567.0,0.238659]
[1727117009605,0.38868422,63568.0,63567.0,0.238659]
[1727117010499,0.38868422,63568.0,63567.0,0.078659]
[1727117011007,0.38968422,63568.0,63567.0,0.078659]
[1727117011913,0.75048422,63568.0,63567.0,0.078659]
[1727117013809,0.75061838,63568.0,63567.0,0.078659]
[1727117014814,0.59355602,63568.0,63567.0,0.078659]
[1727117015017,0.75056717,63568.0,63567.0,0.078659]
[1727117015316,0.75056845,63568.0,63567.0,0.078659]
[1727117015525,0.75056503,63568.0,63567.0,0.078659]
[1727117016512,0.44046,63568.0,63567.0,0.078659]
[1727117023412,0.07966,63568.0,63567.0,0.078659]
[1727117023722,0.67582994,63568.0,63567.0,0.078659]
[1727117024026,0.76691343,63568.0,63567.0,0.078659]
[1727117024411,0.59372923,63568.0,63567.0,0.078659]
[1727117026129,0.67238923,63568.0,63567.0,0.078659]
[1727117026335,0.65108562,63568.0,63567.0,0.188659]
[1727117026626,0.59372923,63568.0,63567.0,0.188659]
[1727117027928,0.76672454,63568.0,63567.0,0.188659]
[1727117028320,0.82408093,63568.0,63567.0,0.188659]
[1727117028719,0.65108562,63568.0,63567.0,0.188659]
[1727117028922,0.59372923,63568.0,63567.0,0.188659]
[1727117031734,0.3618,63568.0,63567.0,0.188659]
[1727117031928,0.3618,63568.0,63567.0,0.26732]
[1727117032318,0.3618,63568.0,63567.0,0.29191437]
[1727117032518,0.001,63568.0,63567.0,0.29191437]
[1727117032730,0.001,63568.0,63567.0,0.41729067]
[1727117033129,0.001,63568.0,63567.0,0.31472]
[1727117037827,0.001,63568.0,63567.0,0.34342791]
[1727117038738,0.10676359,63568.0,63567.0,0.29616622]
[1727117038933,0.15586646,63568.0,63567.0,0.29616622]
[1727117040734,0.15586646,63568.0,63567.0,0.21750522]
[1727117041041,0.15586646,63568.0,63567.0,0.14139731]
[1727117041228,0.23110845,63568.0,63567.0,0.078661]
[1727117041436,0.23110845,63568.0,63567.0,0.10325627]
[1727117041828,0.23110845,63568.0,63567.0,0.21325627]
[1727117042529,0.15244945,63568.0,63567.0,0.21325627]
[1727117043136,0.15244945,63568.0,63567.0,0.188661]
[1727117043349,0.15244945,63568.0,63567.0,0.21325586]
[1727117045940,0.15244945,63568.0,63567.0,0.188661]
[1727117046735,0.001,63568.0,63567.0,0.21325591]
[1727117046939,0.001,63568.0,63567.0,0.188661]
[1727117047137,0.001,63568.0,63567.0,0.21325579]
[1727117048438,0.001,63568.0,63567.0,0.188661]
[1727117050946,0.001,63568.0,63567.0,0.267322]
[1727117052249,0.001,63568.0,63567.0,0.188661]
[1727117052443,0.001,63568.0,63567.0,0.267322]
[1727117053548,0.001,63568.0,63567.0,0.188661]
[1727117053741,0.06251249,63568.0,63567.0,0.188661]
[1727117053942,0.15260159,63568.0,63567.0,0.267322]
[1727117055451,0.15260159,63568.0,63567.0,0.2919163]
[1727117056342,0.15260159,63568.0,63567.0,0.33126598]
[1727117056543,0.15260159,63568.0,63567.0,0.33126678]
[1727117056856,0.15260159,63568.0,63567.0,0.29191616]
[1727117057357,0.15260159,63568.0,63567.0,0.40992761]
[1727117057555,0.15260159,63568.0,63567.0,0.33126661]
[1727117057765,0.15260159,63568.0,63567.0,0.29191608]
[1727117058355,0.15260159,63568.0,63567.0,0.33126574]
[1727117058747,0.15260159,63568.0,63567.0,0.29191608]
[1727117058953,0.21975883,63568.0,63567.0,0.29191608]
[1727117059156,0.15260159,63568.0,63567.0,0.21325508]
[1727117059358,0.30984793,63568.0,63567.0,0.21325508]
[1727117060343,0.15260159,63568.0,63567.0,0.188661]
[1727117060541,0.1528406,63568.0,63567.0,0.21325514]
[1727117061257,0.1528406,63568.0,63567.0,0.25260575]
[1727117061447,0.21992314,63568.0,63567.0,0.21325514]
[1727117061649,0.1528406,63568.0,63567.0,0.21325514]
[1727117061964,0.001,63568.0,63567.0,0.31780176]
[1727117063053,0.079659,63568.0,63567.0,0.12914076]
[1727117063258,0.079659,63568.0,63567.0,0.02459414]
[1727117063662,0.079659,63568.0,63566.0,0.07815809]
[1727117063855,0.078662,63566.0,63565.0,0.078662]
[1727117064061,0.078662,63566.0,63565.0,0.18331077]
[1727117064259,0.078662,63566.0,63565.0,0.20790615]
[1727117064463,0.078662,63566.0,63565.0,0.2074047]
[1727117066155,0.078662,63566.0,63565.0,0.2860597]
[1727117067258,0.078662,63566.0,63565.0,0.32541278]
[1727117068265,0.078662,63566.0,63565.0,0.43541278]
[1727117070166,0.078662,63566.0,63565.0,0.43544641]
[1727117070653,0.078662,63566.0,63565.0,0.37149795]
[1727117072360,0.07865,63569.0,63568.0,0.078649]
[1727117072561,0.078648,63571.0,63570.0,0.078645]
[1727117072868,0.078648,63571.0,63570.0,0.62756957]
[1727117073062,0.078648,63571.0,63570.0,0.73155335]
[1727117073263,0.078648,63571.0,63570.0,0.549445]
[1727117073869,0.08740072,63574.0,63573.0,0.078645]
[1727117074067,0.08740072,63574.0,63573.0,0.188645]
[1727117074269,0.08740072,63574.0,63573.0,0.25112636]
[1727117074774,0.08740072,63574.0,63573.0,0.25112563]
[1727117074971,0.08740072,63574.0,63573.0,0.188645]
[1727117075366,0.08740072,63574.0,63573.0,0.2511209]
[1727117075767,0.08740072,63574.0,63573.0,0.2521209]
[1727117076366,0.08740072,63574.0,63573.0,0.253117]
[1727117076567,0.08740072,63574.0,63573.0,0.190645]
[1727117076870,0.19219646,63574.0,63573.0,0.190645]
[1727117077068,0.24070849,63574.0,63573.0,0.190645]
[1727117077266,0.16206349,63574.0,63573.0,0.190645]
[1727117078173,0.16206349,63574.0,63573.0,0.06829439]
[1727117078476,0.16206349,63574.0,63573.0,0.080645]
[1727117078775,0.28649601,63574.0,63573.0,0.25458131]
[1727117078965,0.33500804,63574.0,63573.0,0.25458131]
[1727117079477,0.16206349,63574.0,63573.0,0.25458131]
[1727117080065,0.16206349,63574.0,63573.0,0.25458083]
[1727117080264,0.28643217,63574.0,63573.0,0.25458083]
[1727117080766,0.16206349,63574.0,63573.0,0.25458083]
[1727117080973,0.16206349,63574.0,63573.0,0.28272091]
[1727117081275,0.28642901,63574.0,63573.0,0.28272091]
[1727117081468,0.33494104,63574.0,63573.0,0.17272091]
[1727117081669,0.33494104,63574.0,63573.0,0.28272091]
[1727117082673,0.16206349,63574.0,63573.0,0.28272091]
[1727117083666,0.15986597,63574.0,63573.0,0.28272104]
[1727117083866,0.00875572,63574.0,63573.0,0.28272104]
[1727117084071,0.00875572,63574.0,63573.0,0.24337583]
[1727117085679,0.00875572,63574.0,63573.0,0.21878508]
[1727117089887,0.00875572,63574.0,63573.0,0.28125646]
[1727117091891,0.00875572,63574.0,63573.0,0.21878508]
[1727117092287,0.00875572,63574.0,63573.0,0.29743008]
[1727117093696,0.00875572,63574.0,63573.0,0.32201907]
[1727117098592,0.00875572,63574.0,63573.0,0.13337407]
[1727117098788,0.00875572,63574.0,63573.0,0.24337407]
[1727117098997,0.11194418,63574.0,63573.0,0.24337407]
[1727117099199,0.28482173,63574.0,63573.0,0.24337407]
[1727117099392,0.33298973,63574.0,63573.0,0.24337407]
[1727117100701,0.16011218,63574.0,63573.0,0.24337407]
[1727117100902,0.16011218,63574.0,63573.0,0.21878508]
[1727117101607,0.16011218,63574.0,63573.0,0.29743008]
[1727117101806,0.16011218,63574.0,63573.0,0.21878508]
[1727117102509,0.21747473,63574.0,63573.0,0.21878508]
[1727117102807,0.16009467,63574.0,63573.0,0.21878508]
[1727117105109,0.33290935,63574.0,63573.0,0.21878508]
[1727117105309,0.33303387,63574.0,63573.0,0.21878508]
[1727117106307,0.16009467,63574.0,63573.0,0.09288546]
[1727117106901,0.22738938,63574.0,63573.0,0.45368546]
[1727117107101,0.27565933,63574.0,63573.0,0.53233046]
[1727117107297,0.36342551,63574.0,63573.0,0.53233046]
[1727117107500,0.1579146,63574.0,63573.0,0.53233046]
[1727117108809,0.1579146,63574.0,63573.0,0.59626439]
[1727117109902,0.1579146,63574.0,63573.0,0.62450772]
[1727117110324,0.22642077,63574.0,63573.0,0.62450772]
[1727117110527,0.31519571,63574.0,63573.0,0.56057379]
[1727117110810,0.31519571,63574.0,63573.0,0.62450694]
[1727117111031,0.31519571,63574.0,63573.0,0.56057379]
[1727117111206,0.31519571,63574.0,63573.0,0.62450695]
[1727117112008,0.35575376,63574.0,63573.0,0.62450695]
[1727117112205,0.15796743,63574.0,63573.0,0.62450695]
[1727117112811,0.22645282,63574.0,63573.0,0.62450695]
[1727117113308,0.31525611,63574.0,63573.0,0.62450693]
[1727117114022,0.08739972,63574.0,63573.0,0.60886417]
[1727117114215,0.18469972,63574.0,63573.0,0.60886417]
[1727117114512,0.26334372,63574.0,63573.0,0.4908757]
[1727117116212,0.26334372,63574.0,63573.0,0.5302212]
[1727117116407,0.26434372,63574.0,63573.0,0.5302212]
[1727117116923,0.26434372,63574.0,63573.0,0.53033703]
[1727117117414,0.22499814,63574.0,63573.0,0.14494736]
[1727117117721,0.078647,63572.0,63571.0,0.0781168]
[1727117118118,0.078647,63572.0,63571.0,0.11]
[1727117118318,0.078647,63572.0,63571.0,0.1881051]
[1727117118722,0.078647,63572.0,63571.0,0.18810541]
[1727117118922,0.078647,63572.0,63571.0,0.188648]
[1727117119121,0.079647,63572.0,63571.0,0.2667538]
[1727117120218,0.158294,63572.0,63571.0,0.11]
[1727117120423,0.158294,63572.0,63570.0,0.0781058]
[1727117120424,0.157296,63571.0,63570.0,0.0781058]
[1727117120814,0.157298,63570.0,63569.0,0.0781058]
[1727117121021,0.07865,63569.0,63568.0,0.1567568]
[1727117121616,0.1573,63569.0,63568.0,0.0781058]
[1727117121817,0.157302,63568.0,63567.0,0.0781058]
[1727117122324,0.078654,63566.0,63564.0,0.1567608]
[1727117122523,0.078654,63566.0,63565.0,0.11]
[1727117123434,0.078654,63566.0,63565.0,0.188655]
[1727117125127,0.078654,63566.0,63565.0,0.191655]
[1727117125632,0.078654,63566.0,63565.0,0.189655]
[1727117125824,0.078654,63566.0,63565.0,0.190655]
[1727117128936,0.18717847,63566.0,63565.0,0.190655]
[1727117129231,0.32852278,63566.0,63565.0,0.190655]
[1727117129433,0.36886067,63566.0,63565.0,0.190655]
[1727117131028,0.22751409,63566.0,63565.0,0.551455]
[1727117131339,0.22751409,63566.0,63565.0,0.57604859]
[1727117131728,0.3688584,63566.0,63565.0,0.57604859]
[1727117132929,0.3688584,63566.0,63565.0,0.21524859]
[1727117133433,0.22751409,63566.0,63565.0,0.21524859]
[1727117134938,0.14886009,63566.0,63565.0,0.21524859]
[1727117135233,0.10058287,63566.0,63565.0,0.21524859]
[1727117135622,0.10054309,63566.0,63565.0,0.21524859]
[1727117135829,0.14882074,63566.0,63565.0,0.21524859]
[1727117136538,0.14882074,63566.0,63565.0,0.21524901]
[1727117136741,0.10054309,63566.0,63565.0,0.57604901]
[1727117136942,0.21998407,63569.0,63568.0,0.078651]
[1727117137163,0.21998407,63569.0,63568.0,0.29415198]
[1727117137442,0.21998407,63569.0,63568.0,0.29407259]
[1727117137939,0.14133307,63569.0,63568.0,0.31866546]
[1727117138836,0.14133307,63569.0,63568.0,0.29407259]
[1727117139036,0.22098307,63569.0,63568.0,0.27775493]
[1727117139239,0.22098307,63569.0,63568.0,0.18407259]
[1727117139944,0.21998307,63569.0,63568.0,0.18407259]
[1727117140242,0.32998307,63569.0,63568.0,0.18407259]
[1727117140745,0.18865,63569.0,63568.0,0.18407259]
[1727117141249,0.18865,63569.0,63568.0,0.18349023]
[1727117141543,0.078651,63568.0,63567.0,0.07808507]
[1727117141740,0.078651,63568.0,63567.0,0.18374273]
[1727117141946,0.078651,63568.0,63567.0,0.07808507]
[1727117142242,0.078651,63568.0,63567.0,0.15673807]
[1727117142437,0.078651,63568.0,63567.0,0.1844524]
[1727117142641,0.078651,63568.0,63567.0,0.1854524]
[1727117143138,0.078651,63568.0,63567.0,0.1844524]
[1727117143444,0.078651,63568.0,63567.0,0.1854524]
[1727117143643,0.439451,63568.0,63567.0,0.15775876]
[1727117144141,0.439451,63568.0,63567.0,0.12751731]
[1727117144940,0.439451,63568.0,63567.0,0.080653]
[1727117145637,0.439451,63568.0,63567.0,0.10524799]
[1727117145841,0.518102,63568.0,63567.0,0.02659499]
[1727117146042,1.037222,63568.0,63567.0,0.002]
[1727117148348,1.038222,63568.0,63567.0,0.001]
[1727117148851,0.078655,63565.0,63564.0,0.04687098]
[1727117149245,0.078656,63564.0,63563.0,0.12552798]
[1727117149549,0.078656,63564.0,63563.0,0.10325326]
[1727117150043,0.078656,63564.0,63563.0,0.078657]
[1727117150957,0.078659,63562.0,63561.0,0.06248575]
[1727117151163,0.267318,63562.0,63561.0,0.02459653]
[1727117151351,0.188659,63562.0,63559.0,0.04688543]
[1727117151575,0.549459,63562.0,63559.0,0.04688543]
[1727117151856,0.157322,63560.0,63559.0,0.04688543]
[1727117152045,0.15733,63557.0,63556.0,0.0473]
[1727117152249,0.32436546,63557.0,63556.0,0.02459851]
[1727117152454,0.068671,63552.0,63549.0,0.0037]
[1727117152649,0.12578495,63550.0,63548.0,0.078676]
[1727117152948,0.10418294,63549.0,63548.0,0.078676]
[1727117153146,0.17843159,63549.0,63548.0,0.078676]
[1727117153344,0.16843159,63549.0,63548.0,0.078676]
[1727117154053,0.04986366,63549.0,63548.0,0.188676]
[1727117154252,0.10999636,63549.0,63548.0,0.188676]
[1727117154449,0.10299636,63550.0,63549.0,0.078675]
[1727117154657,0.10299636,63550.0,63549.0,0.188675]
[1727117154871,0.078673,63551.0,63550.0,0.078674]
[1727117155054,0.15212059,63551.0,63550.0,0.078674]
[1727117155955,0.11266004,63551.0,63550.0,0.078674]
[1727117156159,0.15207393,63551.0,63550.0,0.078674]
[1727117156346,0.11266004,63551.0,63550.0,0.078674]
[1727117156955,0.15301662,63551.0,63550.0,0.087674]
[1727117157347,0.11366004,63551.0,63550.0,0.087674]
[1727117157762,0.11466004,63551.0,63550.0,0.096674]
[1727117158354,0.11466004,63551.0,63550.0,0.018]
[1727117158752,0.15392892,63551.0,63550.0,0.018]
[1727117158950,0.11466004,63551.0,63550.0,0.018]
[1727117159151,0.080673,63551.0,63550.0,0.018]
[1727117159353,0.159346,63551.0,63550.0,0.08042504]
[1727117159684,0.078675,63549.0,63546.0,0.06242504]
[1727117159865,0.4708,63547.0,63546.0,0.06242504]
[1727117160162,0.4708,63547.0,63542.0,0.078683]
[1727117160163,0.11,63547.0,63544.0,0.06242942]
[1727117160466,0.07868,63545.0,63544.0,0.078681]
[1727117160667,0.436477,63549.0,63548.0,0.078676]
[1727117160848,0.436477,63549.0,63548.0,0.25109003]
[1727117161049,0.546477,63549.0,63548.0,0.06241403]
[1727117161359,0.076678,63547.0,63546.0,0.078676]
[1727117161857,0.076678,63547.0,63546.0,0.14106592]
[1727117162063,0.076678,63547.0,63546.0,0.14106529]
[1727117162264,0.076678,63547.0,63546.0,0.14106458]
[1727117162467,0.03731382,63547.0,63546.0,0.14106458]
[1727117162959,0.03731382,63547.0,63546.0,0.078676]
[1727117163167,0.04131382,63547.0,63546.0,0.078676]
[1727117163661,0.004,63547.0,63546.0,0.439476]
[1727117165160,0.002,63547.0,63546.0,0.440476]
[1727117165362,0.078672,63552.0,63551.0,0.078673]
[1727117165550,0.078672,63552.0,63551.0,0.188673]
[1727117165753,0.078672,63552.0,63551.0,0.23541358]
[1727117165948,0.078672,63552.0,63551.0,0.188673]
[1727117166765,0.083672,63552.0,63551.0,0.188673]
[1727117167266,0.005,63552.0,63551.0,0.188673]
[1727117167959,0.009,63552.0,63551.0,0.188673]
[1727117178271,0.009,63552.0,63551.0,0.26677876]
[1727117178574,0.009,63552.0,63551.0,0.29441495]
[1727117178972,0.078657,63564.0,63555.0,0.078667]
[1727117179283,0.3608,63569.0,63564.0,0.078656]
[1727117179475,0.439451,63569.0,63564.0,0.078656]
[1727117179777,0.439451,63569.0,63564.0,0.15675369]
[1727117179960,0.3608,63569.0,63564.0,0.23540969]
[1727117180158,0.3608,63569.0,63564.0,0.35620141]
[1727117181173,0.01636071,63565.0,63564.0,0.35720141]
[1727117181776,0.01536071,63565.0,63564.0,0.35720141]
[1727117181974,0.02836071,63565.0,63564.0,0.35820141]
[1727117182272,0.02836071,63565.0,63564.0,0.253112]
[1727117182882,0.08913243,63565.0,63564.0,0.253112]
[1727117184778,0.08677172,63565.0,63564.0,0.253112]
[1727117184975,0.08677172,63565.0,63564.0,0.27770476]
[1727117185173,0.05150167,63565.0,63564.0,0.27770476]
[1727117185370,0.08691576,63565.0,63564.0,0.27770476]
[1727117185687,0.05150167,63565.0,63564.0,0.27770476]
[1727117186174,0.05150167,63565.0,63564.0,0.30594652]
[1727117187482,0.12004718,63565.0,63564.0,0.30594652]
[1727117187675,0.14554885,63565.0,63564.0,0.30594652]
[1727117187982,0.14554885,63565.0,63564.0,0.38460252]
[1727117188281,0.05150167,63565.0,63564.0,0.38460252]
[1727117189177,0.026,63565.0,63564.0,0.48927075]
[1727117189477,0.026,63565.0,63564.0,1.56123075]
[1727117190678,0.026,63565.0,63564.0,1.56145189]
[1727117190880,0.00767072,63575.0,63574.0,0.078644]
[1727117191078,0.00767072,63575.0,63574.0,0.23533832]
[1727117191573,0.00767072,63575.0,63574.0,0.188644]
[1727117191969,0.00767072,63575.0,63574.0,0.189644]
[1727117192171,0.02167072,63575.0,63574.0,0.189644]
[1727117192468,0.10031372,63575.0,63574.0,0.079644]
[1727117192674,0.157288,63574.0,63573.0,0.3608]
[1727117192872,0.660524,63574.0,63573.0,0.3608]
[1727117193078,0.078648,63571.0,63570.0,0.12534332]
[1727117193379,0.078649,63570.0,63569.0,0.04669432]
[1727117193574,0.235349,63570.0,63569.0,0.04669432]
[1727117193769,0.07865,63569.0,63568.0,0.078651]
[1727117194171,0.07865,63569.0,63565.0,0.04671021]
[1727117194172,1.07192,63569.0,63565.0,0.04671021]
[1727117194486,0.16,63566.0,63563.0,0.078657]
[1727117194686,0.16,63566.0,63560.0,0.06595909]
[1727117194687,0.16,63566.0,63560.0,0.0037]
[1727117194874,0.07866,63561.0,63560.0,0.078661]
[1727117196177,0.078656,63564.0,63563.0,0.078658]
[1727117197084,0.13931397,63564.0,63563.0,0.078658]
[1727117197680,0.14331397,63564.0,63563.0,0.079658]
[1727117198186,0.15231397,63564.0,63563.0,0.080658]
[1727117200188,0.15232073,63564.0,63563.0,0.080658]
[1727117204290,0.091656,63564.0,63563.0,0.080658]
[1727117205493,0.091656,63564.0,63563.0,0.14291709]
[1727117207087,0.091656,63564.0,63563.0,0.080658]
[1727117208190,0.013,63564.0,63563.0,0.080658]
[1727117208386,0.078649,63570.0,63569.0,0.07865]
[1727117208782,0.078649,63570.0,63569.0,0.14107547]
[1727117209898,0.078649,63570.0,63569.0,0.14207547]
[1727117211200,0.078649,63570.0,63569.0,0.14307547]
[1727117214714,0.078649,63570.0,63569.0,0.08065]
[1727117218303,0.078649,63570.0,63569.0,0.07965]
[1727117219206,0.15242994,63570.0,63569.0,0.07965]
[1727117219410,0.2294199,63570.0,63569.0,0.07965]
[1727117219597,0.2294199,63570.0,63569.0,0.18965]
[1727117219803,0.2294199,63570.0,63569.0,0.18865]
[1727117220907,0.10249196,63570.0,63569.0,0.18865]
[1727117221506,0.06112823,63570.0,63569.0,0.30874415]
[1727117221812,0.10249196,63570.0,63569.0,0.30874415]
[1727117221997,0.06112823,63570.0,63569.0,0.30874415]
[1727117222305,0.10249196,63570.0,63569.0,0.30874415]
[1727117222609,0.078648,63571.0,63570.0,0.078649]
[1727117222825,0.2456792,63571.0,63570.0,0.078649]
[1727117223002,0.29236811,63571.0,63570.0,0.078649]
[1727117223308,0.29236811,63571.0,63570.0,0.10324315]
[1727117223807,0.10256027,63571.0,63570.0,0.10324315]
[1727117224305,0.02550168,63571.0,63570.0,0.10324315]
[1727117224510,0.10256027,63571.0,63570.0,0.10324315]
[1727117226110,0.10256027,63571.0,63570.0,0.18189215]
[1727117226313,0.02550168,63571.0,63570.0,0.54269215]
[1727117226498,0.15120937,63571.0,63570.0,0.62134115]
[1727117226702,0.10256027,63571.0,63570.0,0.62134115]
[1727117227012,0.10256027,63571.0,63570.0,0.66069035]
[1727117227211,0.12570769,63574.0,63570.0,0.60779894]
[1727117227408,0.12570769,63574.0,63573.0,0.15729]
[1727117227609,0.12570769,63574.0,63573.0,0.28629074]
[1727117229100,0.12570769,63574.0,63573.0,0.20764574]
[1727117229321,0.12570769,63574.0,63573.0,0.18305159]
[1727117229511,0.20435169,63574.0,63573.0,0.28564346]
[1727117229815,0.20435169,63574.0,63573.0,0.26105231]
[1727117230202,0.31435169,63574.0,63573.0,0.26105231]
[1727117230403,0.078647,63572.0,63571.0,0.07800072]
[1727117230602,0.078647,63572.0,63570.0,0.439449]
[1727117230603,0.157296,63571.0,63570.0,0.43996072]
[1727117230803,0.205496,63571.0,63570.0,0.3608]
[1727117231003,0.078651,63568.0,63567.0,0.07800072]
[1727117231213,0.078651,63568.0,63564.0,0.07800072]
[1727117231214,0.078653,63567.0,63564.0,0.07800072]
[1727117231418,0.078656,63564.0,63563.0,0.07800072]
[1727117231715,0.078659,63562.0,63561.0,0.15666072]
[1727117232012,0.188659,63562.0,63561.0,0.07866]
[1727117232405,0.078659,63562.0,63561.0,0.07866]
[1727117232816,0.078659,63562.0,63561.0,0.08466]
[1727117233604,0.078659,63562.0,63561.0,0.08066]
[1727117233805,0.073659,63562.0,63561.0,0.08066]
[1727117234413,0.073659,63562.0,63561.0,0.08266]
[1727117236610,0.073659,63562.0,63561.0,0.02859676]
[1727117236805,0.073659,63562.0,63561.0,0.10725676]
[1727117238015,0.073659,63562.0,63561.0,0.10625676]
[1727117239225,0.073659,63562.0,63561.0,0.08166]
[1727117239432,0.073659,63562.0,63561.0,0.10625679]
[1727117239815,0.073659,63562.0,63561.0,0.10525679]
[1727117240726,0.073659,63562.0,63561.0,0.10425679]